bitfinex/quotes_ETHUSD_20250904
["timestamp","ask_amount","ask_price","bid_price","bid_amount"]
[1757008560722,0.001,4319.9,4319.8,2.31492198]
[1757008560934,3.454,4319.9,4319.8,3.51772198]
[1757008563517,3.454,4319.9,4319.8,0.2936]
[1757008563841,3.454,4319.9,4319.6,0.12]
[1757008564040,3.454,4319.9,4319.7,2.31497557]
[1757008564247,3.454,4319.9,4319.8,0.2936]
[1757008564449,3.454,4319.9,4319.8,2.60852198]
[1757008564818,3.454,4319.9,4319.8,0.2936]
[1757008565020,3.454,4319.9,4319.6,0.5777]
[1757008565243,3.454,4319.9,4319.7,2.31493436]
[1757008565835,0.2491,4319.8,4319.6,0.004]
[1757008566032,1.706,4319.7,4319.6,0.004]
[1757008566250,4.92637557,4319.7,4319.6,0.004]
[1757008566451,5.17737557,4319.7,4319.6,0.004]
[1757008567257,4.71627557,4319.7,4319.6,0.004]
[1757008567554,6.39698551,4319.7,4319.6,0.004]
[1757008567763,6.85618551,4319.7,4319.6,0.004]
[1757008569065,5.95268551,4319.7,4319.6,0.004]
[1757008570063,9.85068551,4319.7,4319.6,0.004]
[1757008573273,7.53570994,4319.7,4319.6,0.004]
[1757008573447,7.28470994,4319.7,4319.6,0.004]
[1757008573637,5.604,4319.7,4319.6,0.004]
[1757008574476,7.91897557,4319.7,4319.6,0.004]
[1757008575073,5.604,4319.7,4319.6,0.004]
[1757008575371,7.91897557,4319.7,4319.6,0.004]
[1757008575574,8.14987557,4319.7,4319.6,0.004]
[1757008575747,9.24259199,4319.7,4319.6,0.004]
[1757008576634,2.79871642,4319.7,4319.6,0.004]
[1757008576838,5.601,4319.7,4319.6,0.3191]
[1757008577063,5.601,4319.7,4319.6,0.7865]
[1757008577265,5.601,4319.7,4319.6,0.3191]
[1757008578084,5.9129,4319.7,4319.6,0.004]
[1757008578377,8.22787557,4319.7,4319.6,0.004]
[1757008578590,9.62839033,4319.7,4319.6,0.004]
[1757008578749,7.31341476,4319.7,4319.6,0.004]
[1757008579479,7.00151476,4319.7,4319.6,0.004]
[1757008580237,6.99951476,4319.7,4319.6,0.004]
[1757008580442,5.599,4319.7,4319.6,0.004]
[1757008580882,5.8299,4319.7,4319.6,0.004]
[1757008581040,8.14487557,4319.7,4319.6,0.004]
[1757008581244,5.599,4319.7,4319.6,0.004]
[1757008584883,5.599,4319.7,4319.6,0.7865]
[1757008584884,1.706,4319.7,4319.6,0.7865]
[1757008585046,5.597,4319.7,4319.6,3.68122916]
[1757008585560,5.597,4319.7,4319.6,4.86691506]
[1757008586676,3.891,4319.7,4319.6,4.86691506]
[1757008591197,4.1219,4319.7,4319.6,0.12]
[1757008591480,4.1219,4319.7,4319.6,0.004]
[1757008592645,4.1229,4319.7,4319.6,0.004]
[1757008595149,5.8289,4319.7,4319.6,0.004]
[1757008595768,6.70119753,4319.7,4319.6,0.004]
[1757008596678,7.16339753,4319.7,4319.6,0.004]
[1757008596975,9.9681731,4319.7,4319.6,0.004]
[1757008597475,7.16339753,4319.7,4319.6,0.004]
[1757008597678,9.4783731,4319.7,4319.6,0.004]
[1757008598384,9.0161731,4319.7,4319.6,0.004]
[1757008598696,9.4783731,4319.7,4319.6,0.004]
[1757008598880,9.0161731,4319.7,4319.6,0.004]
[1757008599192,9.9769731,4319.7,4319.6,0.004]
[1757008599552,18.3099731,4319.7,4319.6,0.004]
[1757008600063,19.1019731,4319.7,4319.6,0.004]
[1757008600361,26.00206701,4319.7,4319.6,0.004]
[1757008600556,26.00206701,4319.7,4319.6,1e-08]
[1757008600758,26.28301678,4319.7,4319.6,1e-08]
[1757008601988,26.00206701,4319.7,4319.6,1e-08]
[1757008604890,3.10718996,4319.3,4319.2,1e-08]
[1757008605061,6.10724356,4319.2,4319.1,1e-08]
[1757008605392,7.29954356,4319.2,4319.1,1e-08]
[1757008608102,11.19054356,4319.2,4319.1,1e-08]
[1757008609276,11.47149333,4319.2,4319.1,1e-08]
[1757008609471,11.19054356,4319.2,4319.1,1e-08]
[1757008609666,11.19054356,4319.2,4318.8,0.029]
[1757008609667,3.10740438,4318.9,4318.8,1e-08]
[1757008609882,18.72249829,4318.9,4318.8,1e-08]
[1757008610092,19.01089829,4318.9,4318.8,1e-08]
[1757008610401,19.91479829,4318.9,4318.8,1e-08]
[1757008612494,19.01089829,4318.9,4318.8,1e-08]
[1757008612700,19.88319582,4318.9,4318.8,0.00400001]
[1757008613199,19.88319582,4318.9,4318.8,1e-08]
[1757008613200,20.28849582,4318.9,4318.8,1e-08]
[1757008614475,19.88319582,4318.9,4318.8,1e-08]
[1757008614674,20.28849582,4318.9,4318.8,1e-08]
[1757008614981,19.88319582,4318.9,4318.8,1e-08]
[1757008616804,6.10745799,4318.8,4318.7,1e-08]
[1757008616977,8.65392952,4318.8,4318.7,1e-08]
[1757008617179,8.94232952,4318.8,4318.7,1e-08]
[1757008618100,9.03519308,4318.8,4318.7,1e-08]
[1757008619772,8.53659308,4318.8,4318.7,1e-08]
[1757008620211,9.03519308,4318.8,4318.7,1e-08]
[1757008620713,8.53659308,4318.8,4318.7,1e-08]
[1757008621007,7.05089308,4318.8,4318.7,0.78460001]
[1757008621302,9.20745799,4318.8,4318.7,1.22150001]
[1757008621886,9.20745799,4318.8,4318.7,0.78460001]
[1757008622499,9.20745799,4318.8,4318.7,1.22150001]
[1757008624196,5.31545799,4318.8,4318.7,1.22150001]
[1757008624511,9.20745799,4318.8,4318.7,1.22150001]
[1757008626105,11.68448693,4318.8,4318.7,1e-08]
[1757008626416,13.44718693,4318.8,4318.7,1e-08]
[1757008626610,13.44638693,4318.8,4318.7,1e-08]
[1757008626809,12.75338693,4318.8,4318.7,1e-08]
[1757008627615,15.19338693,4318.8,4318.7,1e-08]
[1757008627792,12.97428693,4318.8,4318.7,1e-08]
[1757008630394,12.97528693,4318.8,4318.7,1e-08]
[1757008634003,12.75438693,4318.8,4318.7,1e-08]
[1757008635341,12.97988693,4318.8,4318.7,1e-08]
[1757008635708,2.31556522,4318.6,4318.2,1e-08]
[1757008635937,2.31588698,4318.0,4317.9,1e-08]
[1757008636104,11.03088698,4318.0,4317.9,1e-08]
[1757008636435,13.13476304,4318.0,4317.9,1e-08]
[1757008637216,13.13476304,4318.0,4317.9,0.30820001]
[1757008638103,13.25104662,4318.0,4317.9,0.30820001]
[1757008639033,14.27094662,4318.0,4317.9,1e-08]
[1757008639335,14.54554662,4318.0,4317.9,0.30820001]
[1757008640209,9.24276304,4318.0,4317.9,1.25350001]
[1757008640529,18.47076304,4318.0,4317.9,1.25350001]
[1757008640731,12.47488698,4318.0,4317.9,1.25350001]
[1757008641031,7.043,4318.0,4317.9,1.25350001]
[1757008641244,13.25088698,4318.0,4317.9,1.25350001]
[1757008641429,10.935,4318.0,4317.9,1.25350001]
[1757008641731,11.051,4318.0,4317.9,1.25350001]
[1757008642540,7.159,4318.0,4317.9,1.25350001]
[1757008642706,11.051,4318.0,4317.9,1.25350001]
[1757008645840,13.36688698,4318.0,4317.9,1.25350001]
[1757008646835,11.051,4318.0,4317.9,1.25350001]
[1757008648041,13.36688698,4318.0,4317.9,1.25350001]
[1757008648341,13.36688698,4318.0,4317.9,0.30820001]
[1757008648556,18.62516385,4318.0,4317.9,1e-08]
[1757008648852,18.85166385,4318.0,4317.9,1e-08]
[1757008649013,18.85166385,4318.0,4317.9,0.30820001]
[1757008649014,18.62616385,4318.0,4317.9,0.30820001]
[1757008649952,18.62616385,4318.0,4317.9,1e-08]
[1757008650309,18.85406385,4318.0,4317.9,1e-08]
[1757008650539,18.62616385,4318.0,4317.9,1e-08]
[1757008650924,18.62616385,4318.0,4317.9,0.30820001]
[1757008651325,18.62616385,4318.0,4317.9,0.75500001]
[1757008651520,18.62616385,4318.0,4317.9,1.25350001]
[1757008652830,18.62616385,4318.0,4317.9,0.30820001]
[1757008653233,18.62616385,4318.0,4317.9,1e-08]
[1757008654947,18.62616385,4318.0,4317.9,0.30820001]
[1757008655150,18.62616385,4318.0,4317.9,0.75500001]
[1757008655652,24.4949835,4318.0,4317.9,1.25350001]
[1757008656139,24.4949835,4318.0,4317.9,0.80670001]
[1757008656718,24.4949835,4318.0,4317.9,0.30820001]
[1757008657364,24.7871835,4318.0,4317.9,1e-08]
[1757008657661,24.4949835,4318.0,4317.9,0.30820001]
[1757008659753,24.7249835,4318.0,4317.9,1e-08]
[1757008660819,18.62516385,4318.0,4317.9,1.24010001]
[1757008661023,14.73416385,4318.0,4317.9,1.24010001]
[1757008661226,18.62516385,4318.0,4317.9,1.24010001]
[1757008661852,18.62516385,4318.0,4317.9,1e-08]
[1757008662454,18.85516385,4318.0,4317.9,1e-08]
[1757008662964,18.62516385,4318.0,4317.9,1e-08]
[1757008663637,18.85756385,4318.0,4317.9,1e-08]
[1757008664244,19.78616385,4318.0,4317.9,1e-08]
[1757008664555,19.87904034,4318.0,4317.9,1e-08]
[1757008664756,19.41124034,4318.0,4317.9,1e-08]
[1757008666471,18.95044034,4318.0,4317.9,1e-08]
[1757008667971,19.41124034,4318.0,4317.9,1e-08]
[1757008669176,18.95044034,4318.0,4317.9,1e-08]
[1757008670566,18.71804034,4318.0,4317.9,1.24010001]
[1757008670734,24.58685999,4318.0,4317.9,1.24010001]
[1757008671770,20.69585999,4318.0,4317.9,1.24010001]
[1757008671972,20.6029835,4318.0,4317.9,1.24010001]
[1757008672138,24.4929835,4318.0,4317.9,1.24010001]
[1757008673472,0.792,4317.7,4317.6,0.004]
[1757008673674,3.10815518,4317.5,4317.4,0.004]
[1757008673972,7.23055518,4317.5,4317.4,1e-08]
[1757008674146,6.10820882,4317.4,4317.3,1e-08]
[1757008674353,12.43782847,4317.4,4317.3,1e-08]
[1757008674548,14.93080534,4317.4,4317.2,0.004]
[1757008674750,2.31642344,4317.0,4316.1,0.4657]
[1757008674979,7.91342344,4317.0,4316.1,0.4657]
[1757008675136,11.40691563,4317.0,4316.1,0.4657]
[1757008675857,12.19891563,4317.0,4316.9,1e-08]
[1757008676064,13.12301563,4317.0,4316.9,1e-08]
[1757008676783,3.0,4316.2,4315.6,0.469]
[1757008676943,2.31701383,4315.9,4315.6,0.469]
[1757008677137,6.20701383,4315.9,4315.6,0.469]
[1757008677464,6.20701383,4315.9,4315.8,0.3344]
[1757008677842,6.20701383,4315.9,4315.8,1.2651]
[1757008678048,6.20701383,4315.9,4315.8,0.025]
[1757008678465,6.43701383,4315.9,4315.8,0.025]
[1757008678665,11.16360743,4315.9,4315.8,0.025]
[1757008679581,11.62670743,4315.9,4315.8,0.025]
[1757008679874,3.1091212,4315.7,4315.6,0.004]
[1757008680102,16.12553304,4315.7,4315.6,0.004]
[1757008680243,16.35793304,4315.7,4315.6,0.004]
[1757008683050,16.12553304,4315.7,4315.6,0.004]
[1757008683376,16.35553304,4315.7,4315.6,0.004]
[1757008683575,16.47153304,4315.7,4315.6,0.004]
[1757008684266,15.44953304,4315.7,4315.6,0.7791]
[1757008684462,15.19294085,4315.7,4315.6,1.2441]
[1757008684664,15.19294085,4315.7,4315.6,0.3134]
[1757008684870,11.30194085,4315.7,4315.6,0.7791]
[1757008685053,15.19294085,4315.7,4315.6,1.2441]
[1757008685679,9.3241212,4315.7,4315.6,1.2441]
[1757008687659,15.19294085,4315.7,4315.6,1.2441]
[1757008688766,9.3241212,4315.7,4315.6,1.2441]
[1757008690886,5.4331212,4315.7,4315.6,1.2441]
[1757008691087,9.3241212,4315.7,4315.6,1.2441]
[1757008694070,9.3241212,4315.7,4315.6,0.7784]
[1757008695197,9.3241212,4315.7,4315.6,1.2189]
[1757008696195,7.007,4315.7,4315.6,1.2189]
[1757008696366,0.116,4315.7,4315.6,1.34079]
[1757008696561,4.007,4315.7,4315.6,1.34079]
[1757008697297,4.007,4315.7,4315.6,1.2189]
[1757008698014,12.19294085,4315.7,4315.6,0.3134]
[1757008698296,12.50804085,4315.7,4315.6,0.004]
[1757008698770,15.50804085,4315.7,4315.6,0.004]
[1757008704597,2.31733599,4315.3,4315.2,0.004]
[1757008704796,17.6646157,4315.3,4315.2,0.004]
[1757008705095,17.9797157,4315.3,4315.2,0.004]
[1757008707223,17.9797157,4315.3,4315.2,0.3168]
[1757008707224,17.6646157,4315.3,4315.2,0.3168]
[1757008708287,11.03233599,4315.3,4315.2,1.2452]
[1757008708517,11.03233599,4315.3,4315.2,0.004]
[1757008709383,11.03233599,4315.3,4315.2,0.3168]
[1757008709604,11.03233599,4315.3,4315.2,1.2452]
[1757008710725,11.28273599,4315.3,4315.2,0.004]
[1757008710908,12.95417801,4315.3,4315.2,0.004]
[1757008711090,12.95417801,4315.3,4315.2,1.2452]
[1757008711412,12.95417801,4315.3,4315.2,0.3168]
[1757008712093,12.95417801,4315.3,4315.2,0.7573]
[1757008712288,12.95417801,4315.3,4315.2,0.004]
[1757008712692,18.82299766,4315.3,4315.2,0.3168]
[1757008712905,19.07339766,4315.3,4315.2,0.004]
[1757008713990,19.1663268,4315.3,4315.2,0.004]
[1757008716426,19.1663268,4315.3,4315.2,0.8047]
[1757008716427,9.06317801,4315.3,4315.2,0.8047]
[1757008716614,11.03233599,4315.3,4315.2,1.2452]
[1757008717330,16.90115564,4315.3,4315.2,1.2452]
[1757008717503,11.03233599,4315.3,4315.2,0.3168]
[1757008718527,11.28273599,4315.3,4315.2,0.004]
[1757008718921,18.19857932,4315.3,4315.2,0.004]
[1757008719128,20.25945623,4315.3,4315.2,0.004]
[1757008720802,20.35238839,4315.3,4315.2,0.004]
[1757008721930,20.79528839,4315.3,4315.2,0.004]
[1757008723138,21.58728839,4315.3,4315.2,0.004]
[1757008723850,21.14438839,4315.3,4315.2,0.004]
[1757008727742,20.89398839,4315.3,4315.2,0.004]
[1757008728413,20.10198839,4315.3,4315.2,0.3006]
[1757008729327,7.23426815,4315.3,4315.2,1.2323]
[1757008729532,11.03133599,4315.3,4315.2,1.2323]
[1757008736625,5.714,4315.3,4315.2,1.2323]
[1757008737022,8.03133599,4315.3,4315.2,1.2323]
[1757008739953,8.03133599,4315.3,4315.2,0.75]
[1757008740155,8.03133599,4315.3,4315.2,0.3006]
[1757008740332,8.03133599,4315.3,4315.2,1.2323]
[1757008741528,1.824,4315.3,4315.2,1.2323]
[1757008741732,5.713,4315.3,4315.2,1.2323]
[1757008742767,8.03033599,4315.3,4315.2,1.2323]
[1757008744447,9.84599356,4315.3,4315.2,0.004]
[1757008744647,16.76183689,4315.3,4315.2,0.004]
[1757008746051,19.76183689,4315.3,4315.2,0.004]
[1757008746251,20.20823689,4315.3,4315.2,0.004]
[1757008746651,19.76183689,4315.3,4315.2,0.004]
[1757008747072,12.84599356,4315.3,4315.2,0.004]
[1757008748882,11.03033599,4315.3,4315.2,1.2171]
[1757008750864,4.14133599,4315.3,4315.2,1.2171]
[1757008751069,8.03033599,4315.3,4315.2,1.2171]
[1757008751448,8.03033599,4315.3,4315.2,0.7885]
[1757008751648,8.28323599,4315.3,4315.2,0.004]
[1757008752580,8.03033599,4315.3,4315.2,0.004]
[1757008752751,8.03033599,4315.3,4315.2,0.7356]
[1757008752947,8.03033599,4315.3,4315.2,1.2171]
[1757008754752,8.03033599,4315.3,4315.2,0.307]
[1757008755162,8.03033599,4315.3,4315.2,0.7356]
[1757008755588,8.03033599,4315.3,4315.2,1.2171]
[1757008758386,8.02933599,4315.3,4315.2,1.2171]
[1757008758585,8.02933599,4315.3,4315.2,0.307]
[1757008758785,8.02933599,4315.3,4315.2,0.004]
[1757008759089,9.85089409,4315.3,4315.2,0.004]
[1757008761091,9.59799409,4315.3,4315.2,0.004]
[1757008761281,9.89809409,4315.3,4315.2,0.004]
[1757008762168,9.59799409,4315.3,4315.2,0.307]
[1757008762380,8.02933599,4315.3,4315.2,0.307]
[1757008763774,8.28223599,4315.3,4315.2,0.004]
[1757008764095,13.71672376,4315.3,4315.2,0.004]
[1757008764803,13.41913599,4315.3,4315.2,0.004]
[1757008767307,15.80096217,4315.3,4315.2,0.004]
[1757008768372,15.65804994,4315.3,4315.2,1e-08]
[1757008768574,16.37330871,4315.3,4315.2,1e-08]
[1757008768923,15.80096217,4315.3,4315.2,1e-08]
[1757008773690,15.32516217,4315.3,4315.2,1e-08]
[1757008775526,15.36046217,4315.3,4315.2,1e-08]
[1757008775687,15.32516217,4315.3,4315.2,1e-08]
[1757008776795,14.88466217,4315.3,4315.2,1e-08]
[1757008779518,20.7635217,4315.3,4315.2,1e-08]
[1757008780398,21.6615217,4315.3,4315.2,1e-08]
[1757008781315,21.2001217,4315.3,4315.2,1e-08]
[1757008782119,20.7635217,4315.3,4315.2,1e-08]
[1757008784225,20.7645217,4315.3,4315.2,1e-08]
[1757008784600,21.2011217,4315.3,4315.2,1e-08]
[1757008785525,0.792,4314.9,4314.8,1e-08]
[1757008785736,13.80482062,4314.9,4314.8,1e-08]
[1757008785893,16.49697143,4314.9,4314.8,1e-08]
[1757008786095,11.98846405,4314.8,4314.7,1e-08]
[1757008786423,14.69117202,4314.8,4314.7,1e-08]
[1757008786601,14.51677202,4314.8,4314.7,1e-08]
[1757008786802,6.10981939,4314.4,4313.9,0.4682]
[1757008787113,17.69967892,4314.4,4313.9,0.4682]
[1757008787422,17.94664001,4314.4,4313.9,0.4682]
[1757008787593,17.94664001,4314.4,4314.3,0.3008]
[1757008787793,17.94664001,4314.4,4314.3,1.2406]
[1757008788396,17.94664001,4314.4,4314.3,0.3008]
[1757008789120,14.94664001,4314.4,4314.3,0.3008]
[1757008789420,17.94664001,4314.4,4314.3,0.3008]
[1757008790823,17.15464001,4314.4,4314.3,0.3008]
[1757008791008,17.15464001,4314.4,4314.3,1.2406]
[1757008791605,7.14181939,4314.4,4314.3,1.2406]
[1757008791805,16.90767892,4314.4,4314.3,1.2406]
[1757008793115,22.24767892,4314.4,4314.3,1.2406]
[1757008794404,12.48181939,4314.4,4314.3,1.2406]
[1757008794611,22.24767892,4314.4,4314.3,1.2406]
[1757008797928,22.24767892,4314.4,4314.3,0.004]
[1757008798135,24.77418689,4314.4,4314.3,0.004]
[1757008799629,25.86377466,4314.4,4314.3,1e-08]
[1757008799830,25.56618689,4314.4,4314.3,1e-08]
[1757008800232,25.56618689,4314.4,4314.3,0.29680001]
[1757008800233,24.51558689,4314.4,4314.3,0.29680001]
[1757008800444,25.56618689,4314.4,4314.3,1e-08]
[1757008800941,25.30758689,4314.4,4314.3,1e-08]
[1757008801638,14.74972736,4314.4,4314.3,0.29680001]
[1757008801808,18.36067892,4314.4,4314.3,1.23660001]
[1757008802149,22.24767892,4314.4,4314.3,0.29680001]
[1757008802319,22.50627892,4314.4,4314.3,1e-08]
[1757008802645,23.30007892,4314.4,4314.3,1e-08]
[1757008802846,25.56798689,4314.4,4314.3,1e-08]
[1757008803013,27.75158689,4314.4,4314.3,1e-08]
[1757008803213,25.30758689,4314.4,4314.3,1e-08]
[1757008803527,25.30758689,4314.4,4314.3,0.29680001]
[1757008804332,24.51558689,4314.4,4314.3,0.29680001]
[1757008804629,24.51558689,4314.4,4314.3,1.23660001]
[1757008804802,22.24767892,4314.4,4314.3,1.23660001]
[1757008805006,22.24767892,4314.4,4314.3,0.29680001]
[1757008805436,22.24767892,4314.4,4314.3,1.23660001]
[1757008805639,22.24767892,4314.4,4314.3,1e-08]
[1757008805842,22.50627892,4314.4,4314.3,1e-08]
[1757008806043,26.02758689,4314.4,4314.3,1e-08]
[1757008806216,27.03473343,4314.4,4314.3,1e-08]
[1757008807717,27.20816932,4314.4,4314.3,1e-08]
[1757008808129,26.31196932,4314.4,4314.3,1e-08]
[1757008808557,26.74676932,4314.4,4314.3,1e-08]
[1757008809266,27.23286932,4314.4,4314.3,1e-08]
[1757008809832,26.74676932,4314.4,4314.3,1e-08]
[1757008810514,18.63672736,4314.4,4314.3,1.26150001]
[1757008810718,13.36881939,4314.4,4314.3,1.26150001]
[1757008811223,22.24767892,4314.4,4314.3,1.26150001]
[1757008811619,22.24767892,4314.4,4314.3,0.30760001]
[1757008812017,22.24767892,4314.4,4314.3,0.77430001]
[1757008812218,22.24767892,4314.4,4314.3,1.26150001]
[1757008814355,24.51558689,4314.4,4314.3,1.26150001]
[1757008814560,24.51558689,4314.4,4314.3,1e-08]
[1757008816488,25.59468689,4314.4,4314.3,1e-08]
[1757008817240,25.30758689,4314.4,4314.3,1e-08]
[1757008818040,25.30758689,4314.4,4314.3,0.30760001]
[1757008818575,24.51458689,4314.4,4314.3,1.26150001]
[1757008819028,7.164,4314.4,4314.3,1.26150001]
[1757008819239,1.709,4314.4,4314.3,1.26150001]
[1757008819431,0.734,4314.4,4314.3,9.45823265]
[1757008819759,4.448,4314.4,4314.3,3.57937312]
[1757008819928,4.448,4314.4,4314.3,1.26150001]
[1757008820133,4.448,4314.4,4314.3,4.59491165]
[1757008820549,4.448,4314.4,4314.3,2.27703854]
[1757008820950,4.448,4314.4,4314.3,4.59491165]
[1757008821167,4.448,4314.4,4314.3,1.81033854]
[1757008821366,6.76581939,4314.4,4314.3,1.26150001]
[1757008821979,3.05181939,4314.4,4314.3,1.26150001]
[1757008822132,0.734,4314.4,4314.3,1.26150001]
[1757008822561,4.62,4314.4,4314.3,1.26150001]
[1757008822762,4.62,4314.4,4314.3,1.61944416]
[1757008823545,0.734,4314.4,4314.3,1.61944416]
[1757008823767,4.62,4314.4,4314.3,1.61944416]
[1757008824778,4.62,4314.4,4314.3,3.93731727]
[1757008825078,0.734,4314.4,4314.3,3.93731727]
[1757008825282,4.62,4314.4,4314.3,1.61944416]
[1757008827162,4.62,4314.4,4314.3,3.93731727]
[1757008827471,5.594,4314.4,4314.3,3.93731727]
[1757008829246,5.594,4314.4,4314.3,4.05331727]
[1757008830750,0.001,4314.4,4314.3,7.84531727]
[1757008832566,0.001,4314.4,4314.3,13.7241768]
[1757008833191,0.001,4316.1,4315.2,2.31738969]
[1757008833389,3.886,4316.1,4316.0,2.31696014]
[1757008833549,3.386,4316.1,4316.0,9.42041967]
[1757008833749,3.386,4316.1,4316.0,10.71016524]
[1757008834244,3.386,4316.1,4316.0,11.40671627]
[1757008835263,0.001,4316.3,4316.1,2.31690646]
[1757008835465,0.001,4316.3,4316.1,3.23390646]
[1757008835466,3.885,4316.2,4316.1,3.23390646]
[1757008835679,3.885,4316.2,4316.1,5.14557234]
[1757008836080,3.885,4316.2,4316.1,11.02443187]
[1757008837091,0.001,4316.2,4316.1,14.81643187]
[1757008837803,0.001,4316.2,4316.1,14.93243187]
[1757008837959,0.001,4316.2,4316.1,18.81643187]
[1757008839562,0.001,4316.3,4316.2,6.10885278]
[1757008839780,0.001,4316.3,4316.2,9.29506075]
[1757008839956,0.001,4316.3,4316.2,9.61046075]
[1757008841516,0.001,4316.3,4316.2,16.51683067]
[1757008842265,0.001,4316.3,4316.2,16.68718451]
[1757008844297,0.001,4316.3,4316.2,7.99301266]
[1757008845464,0.001,4316.3,4316.2,8.46101266]
[1757008847011,0.001,4316.3,4316.2,7.99301266]
[1757008849119,0.001,4316.3,4316.2,8.91131266]
[1757008849496,0.001,4316.3,4316.2,7.99301266]
[1757008850908,1.2354,4316.3,4316.2,7.67761266]
[1757008851221,1.2354,4316.3,4316.2,2.40970469]
[1757008854427,0.7827,4316.3,4316.2,2.40970469]
[1757008854728,0.001,4316.3,4316.2,2.40970469]
[1757008854903,0.001,4316.3,4316.2,3.19310469]
[1757008855093,0.001,4316.3,4316.2,2.72510469]
[1757008855325,0.001,4316.3,4316.2,4.3669428]
[1757008856839,0.001,4316.3,4316.2,4.85811132]
[1757008857139,0.001,4316.3,4316.2,12.5079428]
[1757008857339,0.001,4316.3,4316.2,12.9585428]
[1757008857853,0.001,4316.3,4316.2,13.0745428]
[1757008858352,0.001,4316.7,4316.4,2.31674543]
[1757008858508,0.001,4316.7,4316.4,18.69050227]
[1757008858837,0.001,4316.7,4316.4,19.45073482]
[1757008859039,0.001,4316.7,4316.4,19.90133482]
[1757008860241,0.2884,4316.5,4316.4,7.0879649]
[1757008860443,1.2354,4316.5,4316.4,4.0879649]
[1757008860612,1.2354,4316.5,4316.4,2.31674543]
[1757008861026,0.7827,4316.5,4316.4,2.31674543]
[1757008861347,0.001,4316.5,4316.4,9.53851535]
[1757008861531,0.001,4316.5,4316.4,11.13343718]
[1757008861739,0.2884,4316.5,4316.4,10.81803718]
[1757008862549,0.001,4316.5,4316.4,18.01443718]
[1757008862864,0.001,4316.5,4316.4,18.48243718]
[1757008863021,0.001,4316.5,4316.4,19.27443718]
[1757008863221,0.001,4316.5,4316.4,18.80643718]
[1757008866226,0.001,4316.5,4316.4,19.27443718]
[1757008867763,0.001,4316.5,4316.4,19.36728521]
[1757008868475,0.001,4316.5,4316.4,15.01828521]
[1757008868633,0.001,4316.5,4316.4,10.88551529]
[1757008868634,0.7462,4316.5,4316.4,10.88551529]
[1757008869437,0.7462,4316.5,4316.4,7.00451529]
[1757008869668,0.001,4316.5,4316.4,11.18961529]
[1757008870669,0.001,4316.5,4316.4,11.64801529]
[1757008871436,0.001,4316.5,4316.4,11.18961529]
[1757008871638,0.001,4316.5,4316.4,11.98161529]
[1757008871974,0.001,4316.7,4316.6,3.10863809]
[1757008872177,0.025,4317.8,4317.0,6.10842344]
[1757008872391,0.025,4317.8,4317.1,17.22300339]
[1757008872539,0.025,4317.8,4317.1,18.1088397]
[1757008872738,0.025,4317.8,4317.1,18.2248397]
[1757008872939,0.001,4317.4,4317.1,19.24486458]
[1757008873246,0.001,4317.4,4317.1,18.88709365]
[1757008876078,0.001,4317.4,4317.1,18.42869365]
[1757008877396,0.001,4317.4,4317.2,2.31631613]
[1757008877578,0.001,4317.4,4317.3,6.90316262]
[1757008877759,0.001,4317.4,4317.3,11.63267061]
[1757008878878,0.001,4318.5,4317.9,3.10794061]
[1757008879083,0.001,4318.5,4317.9,14.03346993]
[1757008879283,0.001,4318.5,4317.9,14.01031053]
[1757008879589,0.4578,4318.4,4317.9,16.06303236]
[1757008879766,0.4578,4318.4,4317.9,16.36713236]
[1757008881493,0.4578,4318.4,4317.9,16.06303236]
[1757008882108,0.4578,4318.4,4317.9,16.36713236]
[1757008882775,0.4578,4318.4,4317.9,16.06303236]
[1757008883494,0.4578,4318.4,4317.9,16.23312784]
[1757008883896,0.4578,4318.4,4317.9,16.53722784]
[1757008884202,0.001,4318.5,4317.9,16.99562784]
[1757008886686,0.001,4318.5,4317.9,16.53722784]
[1757008887083,0.4588,4318.5,4317.9,16.53722784]
[1757008887585,1.2081,4318.0,4317.9,16.23212784]
[1757008887790,1.2081,4318.0,4317.9,11.39103236]
[1757008887993,1.2081,4318.0,4317.9,13.67511053]
[1757008888188,1.2081,4318.0,4317.9,9.79611053]
[1757008888398,1.2081,4318.0,4317.9,5.88974061]
[1757008888601,1.2081,4318.0,4317.9,0.5738]
[1757008888981,1.2081,4318.0,4317.5,2.31611357]
[1757008889181,0.9142,4317.9,4317.5,0.69634569]
[1757008889425,0.9142,4317.9,4317.4,0.116]
[1757008889719,0.2929,4317.5,4317.4,2.43220315]
[1757008890033,1.2071,4317.5,4317.4,2.43220315]
[1757008890612,0.7507,4317.5,4317.4,2.43220315]
[1757008890808,0.7507,4317.5,4317.4,4.05563044]
[1757008891580,1.2071,4317.5,4317.4,4.05563044]
[1757008891829,0.7507,4317.5,4317.4,4.05563044]
[1757008892196,1.2071,4317.5,4317.4,2.43220315]
[1757008894812,1.2071,4317.5,4317.1,0.70038772]
[1757008895014,0.9142,4317.4,4317.1,0.004]
[1757008895315,3.23042067,4317.4,4317.1,0.004]
[1757008895492,0.4089,4317.2,4317.1,0.004]
[1757008895693,2.85752613,4317.2,4317.1,0.004]
[1757008895891,1.45541,4317.2,4317.1,0.004]
[1757008896202,3.77172613,4317.2,4317.1,0.004]
[1757008905630,7.65172613,4317.2,4317.1,0.004]
[1757008911760,7.19532613,4317.2,4317.1,0.004]
[1757008912332,7.65412613,4317.2,4317.1,0.004]
[1757008914869,5.33781,4317.2,4317.1,0.004]
[1757008915164,4.2845,4317.2,4317.1,0.004]
[1757008915463,4.7786,4317.2,4317.1,0.004]
[1757008916240,4.7786,4317.2,4317.1,0.22034879]
[1757008916650,4.2845,4317.2,4317.1,0.22034879]
[1757008917138,3.996,4317.2,4317.1,0.22034879]
[1757008919273,3.996,4317.2,4317.1,0.52224879]
[1757008920246,0.116,4317.2,4317.1,0.52224879]
[1757008920442,1.708,4317.8,4317.1,0.52224879]
[1757008920779,0.116,4317.6,4317.5,2.31610928]